{"text_format":"3","workbook":"xlsx","n_sheets":2,"sheets":["附件1（汇总表）","明细表"],"not_rendered":{"defined_names":2},"read":"whole","date_system":"1900"}

{"sheet":"附件1（汇总表）","index":0,"n_rows":24,"n_cols":10,"rows_kept":24,"merged":[[2,0,2,9],[5,0,7,0],[5,1,7,1],[5,2,7,2],[5,3,7,3],[5,4,5,9],[6,4,6,5],[6,6,6,7],[6,8,6,9],[8,0,8,1]]}
["附件1"]
[" "]
["大冶市2025年巩固拓展脱贫攻坚成果和\n乡村振兴项目库汇总表"]
[" "]
[" ",{"$nulls":8},"单位：万元"]
["序号","乡镇","项目 个数","预算总投资","项目类型"]
[{"$nulls":4},"产业发展",null,"乡村建设行动",null,"其他"]
[{"$nulls":4},"个数","金额","个数","金额","个数","金额"]
["合计",null,{"$f":"SUM(C10:C24)","v":152},35253.73,83,13494.71,64,14290.16,5,7468.86]
[1,"保安镇",{"$f":"E10+G10+I10","v":11},{"$f":"F10+H10+J10","v":833},4,414.5,7,418.5]
[2,"陈贵镇",1,60,1,60]
[3,"大箕铺镇",11,1183,6,872,5,311]
[4,"东风农场管理区",1,68,1,68]
[5,"还地桥镇",1,60,1,60]
[6,"金湖街道",4,308,4,308]
[7,"金牛镇",7,1675.64,5,1480,2,195.64]
[8,"金山店镇",10,576,7,400,2,160,1,16]
[9,"灵乡镇",4,260,3,240,1,20]
[10,"刘仁八镇",17,1771.79,5,877.5,12,894.29]
[11,"罗家桥街道",1,80,1,80]
[12,"茗山乡",15,707.6,10,519.6,5,188]
[13,"汪仁镇,金山街办事处",8,2016.3,1,62,7,1954.3]
[14,"殷祖镇",28,2571.5,13,1970,15,601.5]
[15,"大冶市行业部门",33,23082.9,21,6083.11,8,9546.93,4,7452.86]

{"sheet":"明细表","index":1,"n_rows":172,"n_cols":23,"rows_kept":172,"merged":[[0,0,0,22],[1,0,1,22],[2,1,2,2],[2,3,3,3],[2,4,3,4],[2,5,3,5],[2,6,3,6],[2,7,3,7],[2,8,3,8],[2,9,3,9],[2,10,2,11],[2,12,3,12],[2,13,3,13],[2,14,3,14],[2,15,3,15],[2,16,3,16],[2,17,3,17],[2,18,3,18],[2,19,3,19],[2,20,3,20],[2,21,3,21],[2,22,3,22]]}
["附件"]
["大冶市2025年巩固拓展脱贫攻坚成果和乡村振兴项目库明细表"]
["序号","项目建设地点",null,"项目名称","项目类型","二级项目类型","项目子类型","项目建设内容及补助标准","项目预算总投资","项目规划年度","项目归属",null,"是否脱贫村提升工程","是否增加村集体经济收入","是否资产收益","群众参与和利益联结机制","年度总体目标","项目受益总人口数","其中直接受益人口数","项目主管单位","项目负责人","联系电话","备注"]
[null,"乡镇","村",{"$nulls":7},"解决\"两不愁三保障\"项目","巩固提升类项目"]
[{"$nulls":8},{"$f":"SUM(I23+I28+I57+I68+I80+I96+I104+I116+I118+I120+I122+I127+I129+I138+I172)","v":35253.729994},{"$nulls":8},{"$f":"SUM(R23+R28+R57+R68+R80+R96+R104+R116+R118+R120+R122+R127+R129+R138+R172)","v":476576},{"$f":"SUM(S23+S28+S57+S68+S80+S96+S104+S116+S118+S120+S122+S127+S129+S138+S172)","v":324918}]
[1,"刘仁八镇",null,"刘仁八镇发展栀子黄产业项目","产业发展","生产项目","种植业基地","大段村种植栀子黄150亩；岩山村种植栀子黄236亩；腰村村种植栀子黄200亩；刘仁八村种植栀子黄40亩；下纪村产业基地安装喷灌设备；大庄村建设智能水肥一体化及配套设施。",424,2025,"否","是","是","是","是","土地流转、就业务工、带动生产","带动脱贫户务工增收，增加村集体经济收入",5780,1712,"市卫健局","伍清华",13617215369]
[2,"刘仁八镇",null,"刘仁八镇安全饮水工程项目","乡村建设行动","农村基础设施（含产业配套基础设施）","农村供水保障设施建设","腰村村山岭下湾深挖机井，购买大功率抽水泵，建设过滤池，管道铺设及配套设施；大庄村大庄屋湾及吴安二湾打机井；上纪村上邓湾安装20立方组合型蓄水池（不锈钢）及PE50自来水管200米、邹家湾建设30立方蓄水池及PE50自来水管500米；刘文武村原中刘湾小学建设20平方米加压站一处；郑沟村山背罗湾拦水坝片石护砌40米，高3米，宽1米，清淤30m³、胡十六湾水井片石护砌100米，高4米，宽0.8米，清淤50m³，井面硬化30m³、里门湾水井片石护砌80米，高3米，宽1米，清淤40m³，井面硬化15m³；下纪村下纪铺湾、王家洞湾、北刘湾机井、管道铺设及配套设施",191,2025,"否","是","是","否","否","改善群众饮水安全问题","解决季节性缺水，保障群众生活生产用水",3146,3019,"市水利和湖泊局","伍清华",13617215369]
[3,"刘仁八镇",null,"刘仁八镇发展白茶产业项目","乡村建设行动","农村基础设施（含产业配套基础设施）","产业路、资源路、旅游路建设","大段村茶产业路硬化约1000米，铺设约300米U型槽；郑沟村白茶基地配套设施产业路硬化1000米；东山村白茶基地配套设施产业路硬化1500米；刘桥村白茶基地配套设施产业路硬化750米，铺设约300米U型槽；上纪村栀子黄及白茶基地新建产业路硬化1800米，新建道路U水槽排水沟3600米，土地平整2000米。",382,2025,"否","是","是","否","否","土地流转、就业务工、带动生产","改善产业基地生产条件及务工人员出行，白茶运输，带动脱贫户务工增收，增加村集体经济收入",5000,930,"市农业农村局\n、市茶办","伍清华",13617215369]
[4,"刘仁八镇","大段村","刘仁八镇大段村上周湾道路拓宽护砌硬化工程","乡村建设行动","农村基础设施（含产业配套基础设施）","农村道路建设（通村路、通户路、小型桥梁等）","大段村上周湾道路拓宽、护砌、硬化",15,2025,"否","是","否","否","否","保障群众出行安全","方便大段村村民（尤其是上周湾村民）出行",1498,200,"市交通运输局","万亚波",15871215810]
[5,"刘仁八镇","陈如海村","刘仁八镇陈如海村石头坑护砌项目","乡村建设行动","农村基础设施（含产业配套基础设施）","其他","石头坑护砌长35米，高度1.5米，宽度0.8米",1.89,2025,"否","是","是","否","否","保障群众出行安全","保障出行安全",460,460,"市农业农村局","肖其华",13367146088]
[6,"刘仁八镇","八角亭村","刘仁八镇八角亭村四甲湾门口畈沟渠清淤项目","产业发展","配套设施项目","小型农田水利设施建设","沟渠清淤400米",5,2025,"否","是","是","否","否","改善生产条件","完善沟渠排灌功能，保障农田灌溉",100,50,"市农业农村局","郑传雄",13995957453]
[7,"刘仁八镇","金柯村","刘仁八镇金柯辣椒产业园建设","产业发展","加工流通项目","加工业","三层楼标准化生产车间",350,2025,"否","否","否","是","是","改善村民\n生产安全及生产环境","提高村民收\n入及提高村集体收入",620,620,"市商务局、市农业农村局","柯加生",13872060484]
[8,"刘仁八镇","金柯村","刘仁八镇金柯村门口山产业路建设","乡村建设行动","农村基础设施（含产业配套基础设施）","产业路、资源路、旅游路建设","长300米、宽3.5米硬化",16.4,2025,"否","否","否","否","否","改善产业生产条件","提高村民生产质量",220,220,"市交通运输局","柯加生",13872060484]
[9,"刘仁八镇","腰村村","刘仁八镇腰村村周铭湾新建大港拦水坝","产业发展","配套设施项目","小型农田水利设施建设","周铭湾大港新建拦水坝，混凝土块石建筑宽3.5米，高1.8米拦水坝",18.5,2025,"否","是","是","否","否","改善农田水利灌溉","改善农田水利灌溉",800,500,"市农业农村局","郑俊",15997132516]
[10,"刘仁八镇","刘桥村","刘仁八镇刘桥村黄清湾门口塘护砌及清理淤泥","乡村建设行动","农村基础设施（含产业配套基础设施）","其他","石头坑护砌700米，高1.5米，宽800米，清淤100m³。",78,2025,"否","是","否","否","否","保障农田灌溉，劳动生产等","改善村庄环境",2228,280,"市农业农村局","刘文华",13477755331]
[11,"刘仁八镇","刘文武村","刘仁八镇刘文武村背家洪水库泵房建设项目","乡村建设行动","农村基础设施（含产业配套基础设施）","其他","20平方米泵房一处",6,2025,"否","是","否","否","否","保障农田灌溉，劳动生产等","灌溉农田280亩，增产增收",1636,880,"市水利和湖泊局","刘欲晓",13886468108]
[12,"刘仁八镇","东面垅村","刘仁八镇东面垅村下刘湾排水口、门口塘及公路整治工程","乡村建设行动","农村基础设施（含产业配套基础设施）","其他","石头坑护砌200米，高3米，宽1米，排水口水泥护砌150m³、清淤100m³路面硬化100米",70,2025,"否","是","否","否","否","保障全村汛期生活安全、劳动生产、农户出行等","带动农生产增收",1653,1653,"市农业农村局","郑世财",13597733745]
[13,"刘仁八镇","上纪村","刘仁八镇上纪村北山熊湾污水改造项目","乡村建设行动","人居环境整治","村容村貌提升","大四格化粪池1座（40立方米）、污水井10座（直径700*700）、400米污水管道、10户农户旱厕改造水冲式厕所",34,2025,"否","是","是","否","否","减少污染物排放，改善水质","改善群众生活水平、提升北山熊湾人居环境",84,28,"市农业农村局","刘竹清",15172098316]
[14,"刘仁八镇","陈如海村","刘仁八镇陈如海村小学至云台中学路面硬化","乡村建设行动","农村基础设施（含产业配套基础设施）","农村道路建设（通村路、通户路、小型桥梁等）","路面硬化长度800米，宽度5米，厚度0.2米",50,2025,"否","是","是","否","否","保障出行安全","完成路面硬化",2000,2000,"市交通运输局","肖其华",13367146088]
[15,"刘仁八镇","金柯村","刘仁八镇金柯村公共厕所建设项目","乡村建设行动","人居环境整治","农村卫生厕所改造（户用、公共厕所）","建设一个长9米、宽6米标准规范公厕",15,2025,"否","是","否","否","否","提升村容村貌，美化村庄环境","村民方便和环境卫生安全及美化村容村貌",720,460,"市农业农村局","柯加生",13872060484]
[16,"刘仁八镇","大董村","刘仁八镇大董村翠冠梨基地抗旱配套设施项目","乡村建设行动","农村基础设施（含产业配套基础设施）","其他","抗旱水塘护砌、泵房、喷灌配套设施",35,2025,"否","是","是","否","否","土地流转、务工就业等","流转36户土地50亩，每亩流转收益260元，村集体年增收5万元，带动脱贫户20人增收",3136,80,"市农业农村局","万大造",13597615655]
[17,"刘仁八镇","大段村","刘仁八镇大段村连栋钢管大棚项目","产业发展","新型农村集体经济发展项目","新型农村集体经济发展项目","新建连栋大棚16亩，种植火龙果、加强绿色防控基础设施等。",80,2025,"否","是","否","是","是","通过带动务工和土地流转方式，实现脱贫户及村民增加经济收入。","预期收益10年，预计每年增加村集体经济收入约5万元",1480,47,"市委组织部、市财政局、市农业农村局","纪柏定",18064188512]
["小计",null,1,{"$nulls":5},{"$f":"SUM(I6:I22)","v":1771.79},{"$nulls":8},{"$f":"SUM(R6:R22)","v":30561},{"$f":"SUM(S6:S22)","v":13139}]
[18,"灵乡镇","子山村","灵乡镇子山村水产养殖项目","产业发展","新型农村集体经济发展项目","新型农村集体经济发展项目","新建20亩标准化网箱鳝鱼养殖基地，购买鳝鱼苗等。",80,2025,"否","是","否","是","是","土地流转、就业务工带动村民40余户（其中脱贫户4户）增收","建成投产后，预计每年增加村集体经济收入约6万元",1756,46,"市委组织部、市财政局、市农业农村局","汪家顺",13477737658]
[19,"灵乡镇","罗桥村","灵乡镇罗桥村畜禽养殖项目","产业发展","生产项目","养殖业基地","养殖跑山鸡3000只，新建养殖大棚2个，养殖家畜近10只。",40,2025,"否","是","否","是","是","土地流转、就业务工等","村集体增收5万元，带动脱贫户监测户13人就业增收",120,22,"市农业农村局、畜牧中心","余惠明",15971527856]
[20,"灵乡镇","贺铺村","灵乡镇贺铺村沟渠护砌工程","乡村建设行动","农村基础设施（含产业配套基础设施）","其他","新建挡土墙80米",20,2025,"否","是","是","否","否","改善村庄环境。","改善村民生产生活条件",1448,600,"市农业农村局","纪荒山",18986605334]
[21,"灵乡镇","风桥村","灵乡镇风桥村研学基地建设项目","产业发展","生产项目","休闲农业与乡村旅游","铺装田间路3000米，滴管盖设施3000米、新建蓄水池一座，安装栅栏3000米，铺装人行1800米，采购农机6台、农耕器材60套。",120,"2025年","否","是","否","是","否","改善村民居住环境，促进村集体经济发展，通过就业务工方式带动脱贫人口增加收入","方便村民出行、促进风桥村旅游发展",275,16,"市农业农村局","纪建刚",18671420201]
["小计",null,2,{"$nulls":5},{"$f":"SUM(I24:I27)","v":260},{"$nulls":8},{"$f":"SUM(R24:R27)","v":3599},{"$f":"SUM(S24:S27)","v":684}]
[22,"殷祖镇","五庄村","殷祖镇五庄村茶园基地基础设施建设项目","产业发展","生产项目","种植业基地","茶园山洪沟渠整治500米，采茶通道建设500米，确保抗旱保苗",30,2025,"否","是","否","否","否","产业发展、就业务工","带动脱贫户及附近村民就业增收，增加村集体经济，促进农村产业发展",1775,12,"市农业农村局、市茶办","黄永友",13477757788]
[23,"殷祖镇","董口村","殷祖镇董口村泉塘许湾田铺塘撂荒田改造项目","产业发展","生产项目","种植业基地","规划整治、改造撂荒沼泽田16亩，预埋管道引流水源，种植莲藕",20,2025,"否","是","否","是","是","土地流转、就业务工","可带动脱贫户及附近村民就业增收，增加村集体经济，促进农村产业带动旅游产业",220,38,"市农业农村局","许祖研",13647144015]
[24,"殷祖镇","董口村","大冶市果满仓种植家庭农场产业路建设项目","乡村建设行动","农村基础设施（含产业配套基础设施）","产业路、资源路、旅游路建设","绕家庭农场内建设一条2公里产业路",30,2025,"否","是","否","否","否","改善基地生产条件","促进农村产业带动旅游产业",313,158,"市农业农村局","许祖研",13647144015]
[25,"殷祖镇","北山村","殷祖镇北山村东路、西路扩宽建设项目","乡村建设行动","农村基础设施（含产业配套基础设施）","农村道路建设（通村路、通户路、小型桥梁等）","北山村东路1.2公里扩宽；西路5.7公里会车平台建设和转弯处扩宽",60,2025,"否","是","是","否","否","带动生产","保障道路交通安全，助力乡村旅游和白茶产业发展",1280,20,"市交通运输局","徐顺国",15897791328]
[26,"殷祖镇","北山村","殷祖镇北山村北董路硬化建设项目","乡村建设行动","农村基础设施（含产业配套基础设施）","农村道路建设（通村路、通户路、小型桥梁等）","北山村至坳转垴2公里道路硬化",60,2025,"否","是","是","否","否","保障道路交通安全，助力乡村旅游发展","解决群众出行困难",1280,20,"市交通运输局","徐顺国",15897791328]
[27,"殷祖镇","继堂村","殷祖镇继堂村门口塘引水工程项目","乡村建设行动","农村基础设施（含产业配套基础设施）","农村供水保障设施建设","新建蓄水池，铺设通往各湾组门口塘引水管道5000米，",55,2025,"是","是","是","否","否","改善门口头夏季臭水现象，提升村民用水安全","保障村民饮水安全",1662,30,"市水利和湖泊局","卫汉春",13597719509]
[28,"殷祖镇","继堂村","殷祖镇继堂村沟渠建设项目"," 产业发展","配套设施项目","小型农田水利设施建设 ","排水沟建设2000米",30,2025,"否","是","是","否","否","落实基本农田保护，保障村民权益","提升村庄雨季排水",1662,30,"市农业农村局","卫汉春",13597719509]
[29,"殷祖镇","七冲村","殷祖镇七冲村陈必敬湾沟渠治理项目","乡村建设行动","人居环境整治","村容村貌提升","清理整治陈必敬沟渠200米",6.5,2025,"否","是","是","否","否","提升群众生产生活条件","改善七冲村陈必敬水沟环境，提升群众生产生活条件",400,25,"市农业农村局","张纪友",13886464538]
[30,"殷祖镇","赤山村","殷祖镇赤山村粮油厂配套设施项目","产业发展","加工流通项目","加工业","购买稻谷烘干设备、榨油机及基础设施配套建设",45,2025,"否","是","是 ","否","是 ","就业务工","带动附近脱贫户及农户就业增收，增加村集体经济，促进农村产业发展",1939,5,"市农业农村局","周玉虎",13597663232]
[31,"殷祖镇","丁山村","殷祖镇丁山村上徐湾至洪口塘湾道路硬化项目","乡村建设行动","农村基础设施（含产业配套基础设施）","农村道路建设（通村路、通户路、小型桥梁等）","上徐湾至洪口塘湾道路硬化300米",6,2025,"否","是","否","否","否","改善村庄基础设施，提升村容村貌","改善村庄基础设施，提升村容村貌",800,30,"市交通运输局","肖文",15871198200]
[32,"殷祖镇","胡六村","殷祖镇胡六村杨宸湾、墩上湾、胡六湾沟渠护砌建设项目","产业发展","配套设施项目","小型农田水利设施建设","杨宸湾、墩上湾、胡六湾3500米沟渠护砌",150,2025,"否","是","是","否","否","完善农田灌溉排水设施，改善群众生产生活条件境","改善600亩农田基本灌溉与排水问题",271,150,"市农业农村局","查咏娥",15172058490]
[33,"殷祖镇","胡六村","殷祖镇胡六村冠塘港堤墩上湾路段硬化项目","乡村建设行动","农村基础设施（含产业配套基础设施）","产业路、资源路、旅游路建设","胡六村冠塘港堤墩上湾路段500米路面硬化",10,2025,"否","是","是","否","否","改善村庄基础设施，提升村容村貌","改善村庄基础设施，提升村容村貌",140,60,"市交通运输局","查咏娥",15172058490]
[34,"殷祖镇","胡六村","殷祖镇胡六村计事岭水塘维修加固及泵站建设、电路安装项目","产业发展","配套设施项目","小型农田水利设施建设","100米塘堤加固、新建16平方泵站、新建800米沟渠、1300米电路安装",100,2025,"否","是","是","否","否","完善农田灌溉排水设施，进一步改善群众生产生活条件境","完善农田灌溉排水设施，改善群众生产生活条件境",440,20,"市农业农村局","查咏娥",15172058490]
[35,"殷祖镇","殷祖村","殷祖镇殷祖村清华堂湾种植葡萄项目","产业发展","生产项目","种植业基地","种植葡萄8亩",10,2025,"否","是","否","是","是","土地流转、就业务工","带动脱贫户及附近村民就业增收，促进农村产业",320,140,"市农业农村局","殷显强",13597634159]
[36,"殷祖镇","殷祖村","殷祖镇殷祖村清华堂湾产业路硬化建设项目","乡村建设行动","农村基础设施（含产业配套基础设施）","产业路、资源路、旅游路建设","殷祖村清华堂湾郑家垅至葡萄园300米道路硬化",8,2025,"否","是","否","否","否","改善基地生产条件","完成葡萄园300米道路硬化，促进农村产业发展",450,25,"市交通运输局","殷显强",13597634159]
[37,"殷祖镇","高墙村","殷祖镇高墙村大秦岩至陶垅道路硬化项目","乡村建设行动","农村基础设施（含产业配套基础设施）","农村道路建设（通村路、通户路、小型桥梁等）","大秦岩至陶垅道路硬化1公里",60,2025,"否","是","否","否","否","改善道路出行条件，保障太婆尖游客出行安全","改善道路出行条件，保障太婆尖游客出行安全",257,26,"市交通运输局","董克咏",13886459689]
[38,"殷祖镇","高墙村","殷祖镇高墙村委会后背路至山头上道路硬化项目","乡村建设行动","农村基础设施（含产业配套基础设施）","农村道路建设（通村路、通户路、小型桥梁等）","高墙村委会后背路至山头上道路硬化1.2公里",55,2025,"否","是","否","否","否","改善群众出行，进一步完善群众生产生活条件","改善群众出行，进一步完善群众生产生活条件",785,22,"市交通运输局","董克咏",13886459689]
[39,"殷祖镇","高墙村","殷祖镇高墙村杨家发100立方蓄水池饮水工程项目","乡村建设行动","农村基础设施（含产业配套基础设施）","农村供水保障设施建设","修建蓄水池100立方",30,2025,"是","是","否","否","否","解决村民用水问题，改善村民生产生活条件","保障高墙村400户村民生活、生产用水问题",1600,28,"市水利和湖泊局","董克咏",13886459689]
[40,"殷祖镇","南昌村","大冶市殷祖镇南昌村全自动化养殖场   ","产业发展","新型农村集体经济发展项目","新型农村集体经济发展项目","建全自动化养鸡场约600平方米，购买全自动化养鸡设备设备、农机等",70,2025,"否","是","否","是","是","土地流转、务工就业","预期收益20年，预计每年增加村集体经济收入约5-8万元",1739,12,"市委组织部、市财政局、市农业农村局","余劲松",15926908096]
[41,"殷祖镇","赤山村、五庄村、继堂村、朱铺村、董口村、丁山村等12个村","殷祖镇粮食生产安全建设项目","产业发展","配套设施项目","小型农田水利设施建设","土地平整100亩，港渠建设300，沟渠建设2600米，机耕路建设1公里，蓄水池1座，引水管道8000米，董口水库东西干渠护砌、种子肥料等",800,2025,"否","是","是","是","是","解决农田水利灌溉问题","保障赤山村、五庄村100亩农田基本灌溉与排水问题",5000,2000,"市水利湖泊局\n市农业农村局","刘驹",13581299626]
[42,"殷祖镇","高墙村","殷祖镇太婆尖文旅开发建设项目","产业发展","生产项目","休闲农业与乡村旅游","太婆尖广场硬化、公厕1座、蓄水池、生态停车场，太婆尖茶叶展销中心提档升级，登山步道",600,2025,"否","是","否","是","是","务工就业、土地流转、分红","带动村级济收入，脱贫户及附近村民就业，拓展高墙村农副产品市场",1500,500,"市农业农村局\n市文旅局","刘驹",13581299626]
[43,"殷祖镇","继堂村、塘下村、畈段村","殷祖镇茶叶产业链配套设施建设项目","乡村建设行动","农村基础设施（含产业配套基础设施）","其他","涵洞、沟渠建设600米，白茶产业路500米、机井1座，15千瓦泵房，200米引水管",80,2025,"否","是","是","否","否","改善产业基地生产条件","提高产业基地生产效能，带动脱贫户及附近村民就业，务工工资达3万元",500,300,"市农业农村局","刘驹",13581299626]
[44,"殷祖镇","朱铺村","殷祖镇朱铺村水果基地提档升级工程","产业发展","生产项目","种植业基地","扩大猕猴桃种植50亩",50,2025,"否","是","是","是","是","务工就业、土地流转","村集体经济及脱贫人口增收3万",1886,50,"市文旅局","徐聪聪",19976645678]
[45,"殷祖镇","巴庄村","殷祖镇巴庄村新建无花果基地","产业发展","生产项目","种植业基地","新种植无花果25亩",50,2025,"否","是","否","是","是","土地流转、就业务工","带动脱贫户就业15人，一般户200人，增加村级集体经济6万元以上",1000,500,"市农业农村局","石志宇",13872123699]
[46,"殷祖镇","花市村","殷祖镇花市村章安种植农民专业合作社仓储建设","产业发展","加工流通项目","农产品仓储保鲜冷链基础设施建设","建设仓储长20米，宽10米，建长30米，宽3.5米的石子路",15,2025,"否","是","是","是","是","土地流转、务工就业","可带动脱贫户20人就业，可增加村集体经济",30,30,"市农业农村局","章亚鸣",15576649218]
[47,"殷祖镇","南昌村","殷祖镇南昌村人居环境整治项目","乡村建设行动","人居环境整治","村容村貌提升","新建沟渠400米，沟渠清理500米，小三园建设1000平方，加压泵房1座",78,2025,"否","是","否","否","否","改善人居环境，提升村容村貌","改善人居环境，提升村容村貌",400,90,"市农业农村局","余劲松",15926908096]
[48,"殷祖镇","朱铺村","殷祖镇朱铺村胡家山湾送水桥重建工程","乡村建设行动","农村基础设施（含产业配套基础设施）","农村道路建设（通村路、通户路、小型桥梁等）","重建送水桥长50米，宽2.5米",45,2025,"否","是","是","否","否","方便群众出行，进一步改善群众生产生活条件境","解决群众出行困难",169,65,"市交通运输局","徐聪聪",19976645678]
[49,"殷祖镇","花市村","殷祖镇花市村章安路口改造项目","乡村建设行动","农村基础设施（含产业配套基础设施）","农村道路建设（通村路、通户路、小型桥梁等）","硬化混凝土长45米,15米，高0.2米，路基石渣土回填。",18,2025,"否","是","是","否","否","改善道路出行条件，保障出行人员人身安全","保障来往行人人身安全，改善道路出行条件",500,200,"市交通运输局","项建利",15826976008]
["小计",null,3,{"$nulls":5},{"$f":"SUM(I29:I56)","v":2571.5},{"$nulls":8},{"$f":"SUM(R29:R56)","v":28318},{"$f":"SUM(S29:S56)","v":4586}]
[50,"金山店镇","朝阳村","金山店镇朝阳村粮油生产车间项目","产业发展","加工流通项目","加工业","建设一座200平方的榨油车间；建设一座300平方的屯粮仓库",80,2025,"否","是","是","是","是","就业务工","带动脱贫户11人务工，每人年可增加1000元的收入，村集体年收入5万元",1126,11,"市农业农村局","柯强胜",13339929298]
[51,"金山店镇","朝阳村\n梅山村","金山店镇朝阳村茶产业发展项目","产业发展","配套设施项目","小型农田水利设施建设","1.对现有茶园基础设施进行完善，在朝阳村茶园建设长780米、宽1.5米的沟渠；2.在梅山茶园建设长2100米、宽3.5米的水泥路",50,2025,"否","是","是","否","否","就业务工","带动脱贫户18人务工，每人年可增加1000元的收入，村集体年收入15万元",18,18,"市农业农村局、市交通运输局","柯强胜\n柯鑫","13339929298\n13986605644"]
[52,"金山店镇","仕秦村","金山店镇仕秦村中药材育苗大棚建设项目","产业发展","生产项目","种植业基地","中药材育苗大棚建设10亩",50,2025,"否","是","是","是","是","就业务工","初步形成中药材种植规模产业链，增加村集体经济收入8万元",1066,60,"市卫健局","张清浪",13451049478]
[53,"金山店镇","向阳村","金山店镇向阳村向阳洞旅游公路建设项目","乡村建设行动","农村基础设施（含产业配套基础设施）","产业路、资源路、旅游路建设","建设长5公里，宽3.5米的旅游路",120,2025,"否","是","是","否","否","就业务工、带动生产","改善向阳洞连接公路，推动旅游业发展",2170,780,"市农业农村局","朱瑞",13872144139]
[54,"金山店镇","火石村","金山店火石村高标准数字菊花产业园建设项目","产业发展","产业服务支撑项目","智慧农业","运用数字化、智能化管理降低成本，打造集菊花种植、研发、旅游观光于一体的综合性数字菊花产业园",50,2025,"否","是","否","是","否","土地流转、就业服务、劳动生产等","搭建数字化平台，建设产业园智能化种植",1480,1480,"市农业农村局","陈林",8856808]
[55,"金山店镇","山下村","金山店镇山下村家政服务项目","就业项目","就业","技能培训","成立村级家政服务公司，为他们提供培训、购置交通工具，劳动工具，提供村级家政保洁、绿化维修服务",16,2025,"否","是","否","否","否","就业务工","解决农村闲置劳动就业岗位，增加村集体收入",100,40,"市人社局","龚攀峰",18062299499]
[56,"金山店镇","车桥村","金山店镇车桥村哈密瓜种植项目","产业发展","生产项目","种植业基地","哈密瓜种植基地15亩",60,2025,"否","是","否","是","是","土地流转、就业务工","带动就业人口30人，增加集体经济收入5万元",1911,30,"市文旅局","黄朝军",13971788141]
[57,"金山店镇","车桥村","金山店镇车桥村产业路项目","乡村建设行动","农村基础设施（含产业配套基础设施）","产业路、资源路、旅游路建设","鹏舟产业路延伸1000米",40,2025,"否","是","否","否","否","改善产业生产条件","提高生产生活条件",1911,210,"市农业农村局","黄朝军",13971788141]
[58,"金山店镇","车桥村","车桥村水果种植基地","产业发展","新型农村集体经济发展项目","新型农村集体经济发展项目","采购翠冠梨果苗1500余株，建100余亩的翠冠梨种植基地；建20亩的哈密瓜大棚基地；配套建设存储仓库和管理用房，配套灌溉、铁丝网等相关设施等。",60,2025,"否","是","否","是","是","土地流转、务工就业","预计收益10年，预计增加村集体经济收入约5万元，后逐年增加",2677,224,"市委组织部、市财政局、市农业农村局","黄朝军",13971788141]
[59,"金山店镇","永丰村","金山店镇永丰村泉口乐湾西梅基地","产业发展","生产项目","种植业基地","40亩西梅.20亩狗血桃，10亩果冻橙种植及基地配套设施（电线杆，深井水管，蓄水池）",50,2025,"否","是","否","是","是","土地流转，带动脱贫户及村民务工","带动脱贫户6户及村民40人就业，流转土地为群众增收0.2万元",480,360,"市农业农村局","陈世清",13581295939]
["小计",null,4,{"$nulls":5},{"$f":"SUM(I58:I67)","v":576},{"$nulls":8},{"$f":"SUM(R58:R67)","v":12939},{"$f":"SUM(S58:S67)","v":3213}]
[60,"大箕铺镇","东角山村","大箕铺镇东角山村老屋湾生态鸡养殖基地项目","产业发展","生产项目","养殖业基地","1、钢结构棚舍200㎡；2、活动板房50㎡；3、购买鸡仔3000只；4、土地平整30亩；5、其他配套设施建设",70,2025,"否","是","否","是","是","就业务工、带动生产","为村集体经济增收5万元，村民增收5万元",165,75,"市农业农村局、畜牧中心","曹国强",13597694591]
[61,"大箕铺镇","石家晚","大箕铺镇石家晚村门前畈湾港堤修复项目","乡村建设行动","农村基础设施（含产业配套基础设施）","其他","大港一边靠近主干道长12米港堤需修复建设，预计造价16万；大港另一边靠近耕地长30米需修复建设，预计9万。",25,2025,"否","是","是","否","否","改善产业生产条件","解决了门前畈、石庭硅、石高晚、付家山片、龙塘片五个片区群众出行",4200,3300,"市水利和湖泊局","石义文",18186004599]
[62,"大箕铺镇","港边村","大箕铺镇港边村牛皮港灌溉工程项目","产业发展","配套设施项目","小型农田水利设施建设","1.赵景垅-牛皮港护砌u型槽U型槽1500米; 2.牛皮港-铁铺畈维修灌溉水沟维修900米水沟；3.牛皮港-港边畈新建灌溉水沟1500米",44,2025,"否","是","否","否","否","带动生产","解决了群众种植灌灌溉，增加收入",700,400,"市农业农村局","吴高明",18271686333]
[63,"大箕铺镇","曹家晚村","大箕铺镇曹家晚村烈士陵园-水果产业园项目","乡村建设行动","农村基础设施（含产业配套基础设施）","产业路、资源路、旅游路建设","曹家晚村产业路硬化长800米、宽3.5米。",60,2025,"否","是","否","否","否","改善产业生产条件","改善群众生产生活条件",380,380,"市交通运输局","曹晓辉",15072071201]
[64,"大箕铺镇","叶家庄村","大箕铺镇叶家庄村户户通硬化及沟渠护砌建设项目","乡村建设行动","农村基础设施（含产业配套基础设施）","农村道路建设（通村路、通户路、小型桥梁等）","1.老鹳窠湾户户通硬化1000米 2.老鹳窠湾沟渠护砌400米 3.叶家庄湾路面宽2米、长度800米改造 5.叶家庄湾沟渠护砌100米",80,2025,"否","是","是","否","否","改善产业生产条件","改善人居环境、提高村民生活质量",2080,2080,"市交通运输局","曹黑彪",15107235168]
[65,"大箕铺镇","袁家咀村","袁家咀村五升塘建设及公路硬化建设项目","乡村建设行动","农村基础设施（含产业配套基础设施）","农村道路建设（通村路、通户路、小型桥梁等）","袁家咀村五升塘清淤2000立方、护砌长400米宽0.8米高2米、排洪道、灌溉道建设:；户户通和产业路硬化长1500米、宽3.5米.",90,2025,null,"是","否","否","否","带动生产","改善群众生产生活条件",2180,2180,"市水利和湖泊局、市交通运输局","姜鹏云",13597698611]
[66,"大箕铺镇","八流村","大箕铺镇八流村马家老屋门口塘建设及沟渠护砌建设项目","乡村建设行动","农村基础设施（含产业配套基础设施）","其他","新建门口塘4亩及护栏、沟渠护砌500米，排洪道、灌溉道建设",56,2025,"否","是","是","否","否","改善产业生产条件","改善村庄环境及生活农业用水",580,120,"市水利和湖泊局","马作春",13986590039]
[67,"大箕铺镇","八流村","大箕铺镇八流村樟树嘴堰新建项目","产业发展","配套设施项目","小型农田水利设施建设","堰坝长15米，2.5米宽，3米高，修护乐家山至八流水渠2000米，1米宽，0.7米高",68,2025,"否","是","是","否","否","带动生产","解决乐家山、瓦家地、八流湾、刘金益4个片区450亩田地农业用水",1600,860,"市水利和湖泊局","马作春",13986590039]
[68,"大箕铺镇","东角山村","大箕铺镇东角山村蔬菜产业基地","产业发展","新型农村集体经济发展项目","新型农村集体经济发展项目","新建蔬菜大棚20个，发展蔬菜产业",60,2025,"否","是","否","是","是","带动脱贫户20余人务工，带动周边农户50余人务工","预期收益10年，预计每年增加村集体经济收入约5万元",1200,160,"市委组织部、市财政局、市农业农村局","曹国强",13597694591]
[69,"大箕铺镇","方至畈村","大箕铺镇果蔬产业建设项目修复工程","产业发展","生产项目","种植业基地","修复倒塌损毁大棚66个",200,2025,"否","是","否","是","是","土地流转、就业务工、带动生产","带动8+1九个村每年经济收入3万元",500,160,"市农业农村局","陈秋良",18171928533]
[70,"大箕铺镇","大箕铺镇方至畈村和五里界村","大箕铺镇黄连畈建设100亩大棚果蔬生产基地","产业发展","生产项目","种植业基地","建设100亩果蔬生产基地及配套水电路、沟渠和水肥一体化等设施",430,2025,"否","是","否","是","是","土地流转、就业务工、带动生产","带动农户就近就业增加收入，带动特色产业发展，增加村集体经济收入",3000,500,"市商务局","曹祥炳",13972802789]
["小计",null,5,{"$nulls":5},{"$f":"SUM(I69:I79)","v":1183},{"$nulls":8},{"$f":"SUM(R69:R79)","v":16585},{"$f":"SUM(S69:S79)","v":10215}]
[71,"茗山乡","下余村","茗山乡下余村水果种植基地提档升级","产业发展","新型农村集体经济发展项目","新型农村集体经济发展项目","种植基地果苗维护（基地整治和果苗补栽），配套部分灌溉、钢丝网围栏等设施；改建库房，功能性改造升级，配套产业存储仓库",60,2025,"否","是","否","是","是","务工就业、土地流转方式、农副产品销售带动脱贫户及村民增入","预期收益15年，预计每年增加村集体经济收入约10万元",1032,800,"市委组织部、市财政局、市农业农村局","余显佑",13886478339]
[72,"茗山乡","袁大村","茗山乡袁大村袁大湾水库儿至绿洪产业路","乡村建设行动","农村基础设施（含产业配套基础设施）","产业路、资源路、旅游路建设","公路硬化长991米×宽5米×厚0.2米；护砌长200米×宽0.6米×高3.5米；管道安装200米",86,2025,"否","是","否","否","否","方便群众出行、就业务工、劳动生产等","完善产业基地基础配套设施，提高群众生产生活条件",385,165,"市交通运输局","胡奇周","13597658135"]
[73,"茗山乡","仄船村","茗山乡仄船村新建水果采摘园","产业发展","生产项目","种植业基地","新建黄桃采摘园30亩，水肥一体化设施，新建产业路500米",66,2025,"否","是","是","是","是","土地流转、就业务工、带动生产","解决脱贫户和一般农户就业60人",560,60,"市农业农村局","黄柏明","13886474646"]
[74,"茗山乡","京南村","茗山乡京南村桑蚕养殖及加工","产业发展","生产项目","养殖业基地","新建新型养蚕大棚500平方、购置桑叶红茶机械设备及包装",55,2025,"否","是","是","是","是","就业务工、带动生产","增加集体收入5万元，带动群众收入3万元",200,10,"市农业农村局","黄朝盛","13872112612"]
[75,"茗山乡","下余村","茗山乡下余村水果采摘园基地三期建设项目","产业发展","生产项目","种植业基地","新建48亩水果采摘基地一处，土地平整48亩，钢丝网围栏500米，土地施肥48亩，果苗种植3360余株，沟渠开挖2880余米等",31.6,2025,"否","是","否","是","是","土地流转、就业务工","流转21户土地48亩，每亩流转收益264元，村集体年增收2万元，带动脱贫户、一般户15人就业",386,30,"市委组织部、市财政局、市农业农村局","余显佑",13886478339]
[76,"茗山乡","华若村","茗山乡华若村光伏电站扩建工程","产业发展","生产项目","光伏电站建设","整地3亩，扩建100千瓦光伏发电站及配套设施",80,2025,"否","是","是","是","是","壮大村集体经济收入，增加脱贫户收入","带动村民务工，增加村集体收入，增加脱贫户收入",1026,55,"市发改局","柯亚军","13886490987"]
[77,"茗山乡","华若村","茗山乡华若村竹林垅排水沟建设工程","产业发展","配套设施项目","小型农田水利设施建设","维修护砌排水沟长1000m*宽0.8m*均高1.2m",25,2025,"否","是","是","否","否","改善村民生产生活水平","完善产业配套设施，提高合作社水源条件及改善农田灌溉条件",1026,286,"市水利和湖泊局","柯亚军","13886490987"]
[78,"茗山乡","黄湾村","茗山乡黄湾村大棚蔬菜种植基地扩建","产业发展","生产项目","种植业基地","大棚蔬菜种植扩建30亩",66,2025,"否","是","是","是","是","壮大村集体经济，增加脱贫户收入","村集体年增收10万元，带动脱贫户、一般户60人就业人均增收2000元",1021,32,"市商务局","黄必正","17771085962"]
[79,"茗山乡","黄湾村","茗山乡黄湾村新建标准化卫生室","乡村建设行动","农村公共服务","村卫生室标准化建设","村卫生室标准化建设150㎡",30,2025,"是","否","是","否","否","改善村民就医环境","提高公共卫生服务水平",1021,1021,"市卫健局","黄必正","17771085962"]
[80,"茗山乡","黄湾村","茗山乡黄湾村下湾官塘清淤护砌","乡村建设行动","人居环境整治","村容村貌提升","官塘清淤护砌",15,2025,"否","是","是","否","否","改善村民日常生活环境","改善人居环境",103,103,"市水利和湖泊局","黄必正","17771085962"]
[81,"茗山乡","黄湾村","茗山乡黄湾村上湾文化活动广场建设及户户通工程","乡村建设行动","农村公共服务","其他","文化活动广场建设及户户通",42,2025,"否","是","是","否","否","改善村民日常生活环境","改善人居环境",302,302,"市农业农村局","黄必正","17771085962"]
[82,"茗山乡","茗山村","茗山乡茗山村发展香菇产业项目","产业发展","生产项目","种植业基地","养菌车间提档升级、露天喷灌设施、200米水井一个等",60,2025,"否","是","是","是","是","壮大村集体经济，增加脱贫户收入","村集体年增收10万元，带动脱贫户、监测户6户11人",2112,108,"市农业农村局","许学志","13545536088"]
[83,"茗山乡","彭晚村","茗山乡茗山村彭晚村发展生态农业巩固项目","产业发展","生产项目","种植业基地","开挖沟两边护砌300米，新建钢构大棚7亩",45,2025,"否","是","否","是","是","壮大村集体经济，增加脱贫户收入","巩固生态农业发展，增加村集体和脱贫人口收入",1054,180,"市农业农村局","柯天祥","13986583178"]
[84,"茗山乡","天一村","茗山村天一村天一湾安全饮水提档升级工程","乡村建设行动","农村基础设施（含产业配套基础设施）","农村供水保障设施建设","安装不绣钢一体化净水设备",15,2025,"是","否","否","否","否","提高饮水安全","改善居民生活条件环境",512,512,"市水利和湖泊局","张成尧","18607237899"]
[85,"茗山乡","天一村","茗山乡茗山村天一村食用菌种植基地建设","产业发展","生产项目","种植业基地","食用菌种植10亩，大棚20个",31,2025,"否","是","否","是","是","壮大村集体经济，增加脱贫户收入","增加村集体收入2万，带动10户农户就业增收",1020,223,"市农业农村局","张成尧","18607237899"]
["小计",null,6,{"$nulls":5},{"$f":"SUM(I81:I95)","v":707.6},{"$nulls":8},{"$f":"SUM(R81:R95)","v":11760},{"$f":"SUM(S81:S95)","v":3887}]
[86,"金牛镇","胡胜村","金牛镇胡胜村精养鳜鱼养殖","产业发展","生产项目","水产养殖业发展","租用水面面积20亩，配套活饵池40亩，土方开挖，电路，增氧系统，监控系统，补水系统安装等。",80,2025,"否","是","是","是","是","土地流转，就业务工","带动脱贫户及监测户共67户，带动特色产业发展，增长村集体收入6万元",20,10,"市文旅局","唐杰",18772282236]
[87,"金牛镇","胡胜村","金牛镇胡胜村水产养殖","产业发展","生产项目","水产养殖业发展","租用水面面积5亩，补水管安装150米清淤3330立方米，排水口修建、电路、监控系统、增氧系统安装",30,2025,"否","是","是","是","是","土地流转，务工就业","带动脱贫户及监测户共67户，带动特色产业发展，增村集体收入4万",20,10,"市农业农村局","唐杰",18772282236]
[88,"金牛镇","龙潭村","金牛镇龙潭村白仁湾基础设施建设项目","乡村建设行动","农村基础设施（含产业配套基础设施）","其他","新建白仁湾沟渠0.2公里，门口塘清淤，新建护砌0.1公里；湾组道路拓宽0.1公里，湾组道路硬化0.3公里",100,2025,"否","是","是","否","否","改善村民生产生活环境","方便群众出行，防止湾组内涝水淹",1743,1743,"市农业农村局","徐忠明",17762745312]
[89,"金牛镇","鄂王城村","金牛镇鄂王城村特色种养殖产业项目","产业发展","新型农村集体经济发展项目","新型农村集体经济发展项目","1.新建大棚7亩，香菇大棚500平方米。2.新建养殖棚400平米，人工养殖鸵鸟50只；3.新建烘干房、冻库等配套设施。",80,2025,"否","是","是","是","是","带动务工、土地流转、农副产品销售带动脱贫户及村民增收","预期收益15年，预计每年增加村集体经济收入约5-8万元",2520,100,"市委组织部、市财政局、市农业农村局","胡群钢",15072054753]
[90,"金牛镇","小堰村","金牛镇小堰村通村公路维修及全线加宽工程","乡村建设行动","农村基础设施（含产业配套基础设施）","农村道路建设（通村路、通户路、小型桥梁等）","小堰村通村公路维修及全线加宽至5.5米。",95.64,2025,"否","是","否","否","否","保障村民出行便利","美化乡村环境，方便车辆交错通行，消除安全隐患",1419,1419,"市交通运输局","蔡丽芬",13907235549]
[91,"金牛镇","小泉村","金牛镇小泉村食用菌基地项目","产业发展","生产项目","种植业基地","租用面积20亩，建设大棚，种植羊肚菌和香菇，其中有配套产业路和喷灌系统。",90,2025,"否","是","是","是","是","土地流转，就业务工","带动脱贫户5户收入增加0.5万元，增长村集体收入",2005,27,"市农业农村局","金敬先",15871167599]
[92,"金牛镇","小泉村","金牛镇小泉村粮食加工厂项目","产业发展","加工流通项目","加工业","租用面积2000平方米厂房建设粮食加工，100吨粮食烘干机，碾米机等。",1200,2025,"否","是","是","是","是","就业务工","带动脱贫户10户，平均每户脱贫户年收入增加0.5万元，增长村集体收入50万元。",2005,30,"市农业农村局","金敬先",15871167599]
["小计",null,7,{"$nulls":5},{"$f":"SUM(I97:I103)","v":1675.64},{"$nulls":8},{"$f":"SUM(R97:R103)","v":9732},{"$f":"SUM(S97:S103)","v":3339}]
[93,"保安镇","大洪村","保安镇大洪村祝康农业项目","产业发展","新型农村集体经济发展项目","新型农村集体经济发展项目","扩大养牛规模，新增养殖种牛和小黄牛约50头、购买饲料,完善养牛环保设施，升级自动喂养设备",62.5,2025,"否","是","否","是","是","通过带动务工和土地流转方式，实现脱贫户及村民增加经济收入","预期收益10年，预计每年增加村集体经济收入约5-6万元",1206,122,"市委组织部、市财政局、市农业农村局","祝新林",15871181188]
[94,"保安镇","桃树村","保安镇桃树村榨刺垴湾组级道路硬化项目","乡村建设行动","农村基础设施（含产业配套基础设施）","农村道路建设（通村路、通户路、小型桥梁等）","新建长度100米，宽3.5米，厚0.2米道路硬化平整",5,2025,"否","是","否","否","否","方便群众出行，改善群众生产生活条件境","解决群众出行困难",278,160,"市交通运输局","熊红兵",13597623771]
[95,"保安镇","桃树村","保安镇桃树村榨刺垴湾石头嘴门口塘清淤护砌建设工程","乡村建设行动","农村基础设施（含产业配套基础设施）","其他","新建面积0.8亩塘护砌",25,2025,"否","是","否","否","否","改善村居环境，改善群众生产生活条件","解决群众取水困难",278,210,"市水利和湖泊局","熊红兵",13597623771]
[96,"保安镇","桃树村","保安镇桃树村官桥尹湾通村道路硬化工程项目","乡村建设行动","农村基础设施（含产业配套基础设施）","农村道路建设（通村路、通户路、小型桥梁等）","新建长度850米，宽3.5米（路基5米），厚0.2米道路硬化",38,2025,"否","是","否","否","否","方便群众出行，改善群众生产生活条件境","群众出行得到便利，提升村庄面貌",330,220,"市交通运输局","熊红兵",13597623771]
[97,"保安镇","盘茶村","保安镇盘茶村盘茶南山产业路扩宽改造","乡村建设行动","农村基础设施（含产业配套基础设施）","产业路、资源路、旅游路建设","途径明家巷、朱庄屋、盘茶胡、盘茶汪长3500米/宽5米，/宽4米/厚0.2米，道路扩建硬化",220,2025,"否","是","否","否","否","方便群众出行，改善群众生产生活条件境","促进乡村旅游发展，改善群众生产生活环境",119,119,"市交通运输局","明安池",13995962832]
[98,"保安镇","磨山村","保安镇磨山村龙家大屋湾西裤子脚产业路建设工程","乡村建设行动","农村基础设施（含产业配套基础设施）","产业路、资源路、旅游路建设","公路硬化400米及附属",20,2025,"否","是","是","否","否","就业务工","提升养殖户养殖水平，降低养殖成本，方便群众生产、生活",175,175,"市交通运输局","万建虎",13308683044]
[99,"保安镇","磨山村","磨山村进村产业路建设工程","乡村建设行动","农村基础设施（含产业配套基础设施）","产业路、资源路、旅游路建设","新建进村公路1400米、路面宽3.5米、厚度0.2米。",77,2025,"否","是","是","否","否","务工","方便群众生产、生活，解决路边200亩土地的生产运输",1219,1219,"市农业农村局","万建虎","13308683044"]
[100,"保安镇","桂花村","保安镇桂花村产业基地围院及附属建设工程","乡村建设行动","农村基础设施（含产业配套基础设施）","其他","建设围院长度450米",33.5,2025,"否","是","是","否","否","就业务工","完善加工厂基础设施",2599,50,"市农业农村局","黄开应","15871181966"]
[101,"保安镇","牛山村","保安镇牛山村何高昂果树种植项目","产业发展","生产项目","种植业基地","果树种植300亩",300,2025,"否","是","否","是","是","土地流转、就业务工、劳动生产等","流转62户土地300亩，每亩收益300元，村集体年增收3万元，带动脱贫户6人就业",2186,26,"市文旅局","黄涛",13339922388]
[102,"保安镇","高溪村","保安镇高溪村蔬菜瓜果基地","产业发展","生产项目","种植业基地","新建稻虾养殖30亩，露天蔬菜种植50亩沟渠改造200米，蓄水池建设一处，安装大棚滴浇灌系统；",26,2025,"否","是","否","是","是","土地流转、就业务工","增加村集体收入2万",215,5,"市商务局","姜才广",13995975364]
[103,"保安镇","高溪村","保安镇高溪村绿色生态基地建设产业发展","产业发展","生产项目","养殖业基地","面积300平方牛栏设施，散养黄牛40-50头",26,2025,"否","是","否","是","是","土地流转、就业务工","增加村集体收入2万",147,13,"市农业农村局","姜才广",13995975364]
["小计",null,8,{"$nulls":5},{"$f":"SUM(I105:I115)","v":833},{"$nulls":8},{"$f":"SUM(R105:R115)","v":8752},{"$f":"SUM(S105:S115)","v":2319}]
[104,"罗家桥街道","两塘村","大冶市罗家桥街道两塘村蔬菜大棚产业项目","产业发展","新型农村集体经济发展项目","新型农村集体经济发展项目","新建蔬菜大棚25亩，配套产业管理用房和完善排水灌溉设施等",80,2025,"否","是","否","是","是","通过带动务工和土地流转方式，实现脱贫户及村民增加经济收入","预期收益10年，预计每年增加村集体经济收入约5万元",1125,113,"市委组织部、市财政局、市农业农村局","陈小平",13812123586]
["小计",null,9,{"$nulls":5},{"$f":"I117","v":80},{"$nulls":8},{"$f":"R117","v":1125},{"$f":"S117","v":113}]
[105,"还地桥镇","黄岗村","还地桥镇黄岗村水产产业基地项目","产业发展","新型农村集体经济发展项目","新型农村集体经济发展项目","1.新建冻库60立方;2.广场场地300平方米、砌挡土墙300立方;\n2.完善厂房、农副产品加工机器及相关配套设施。",60,2025,"否","是","否","是","是","带动务工和土地流转方式、农副产品销售，实现脱贫户及村民增入","预期收益20年，预计每年增加村集体经济收入约10万元",2238,96,"市委组织部、市财政局、市农业农村局","熊新发",13597650322]
["小计",null,10,{"$nulls":5},{"$f":"I119","v":60},{"$nulls":8},{"$f":"R119","v":2238},{"$f":"S119","v":96}]
[106,"陈贵镇","洋塘村","陈贵镇洋塘村新型大棚芦笋种植基地","产业发展","新型农村集体经济发展项目","新型农村集体经济发展项目","平整土地20亩、新建大棚10亩、\n修建沟、渠、路及灌溉设施设备",60,2025,"否","是","否","是","是","土地流转、村民务工40人(脱贫户6户）。","预期收益10年，预计每年增加村集体经济收入约5-6万元",2478,40,"市委组织部、市财政局、市农业农村局","王忠庆",13872112039]
["小计",null,11,{"$nulls":5},{"$f":"I121","v":60},{"$nulls":8},{"$f":"R121","v":2478},{"$f":"S121","v":40}]
[107,"金湖街道","石任村","大冶市金湖街道石任村集体经济产业园","产业发展","新型农村集体经济发展项目","新型农村集体经济发展项目","1.打造精品粮油产区、优质稻香米，精品菜籽油，纯粮酒共计250亩，稻虾种养15亩、果蔬采摘园100亩,共享菜园10亩。2.配套打造亲子体验区：亲子游玩区水域面积49亩。3.配套农业休闲观光设施建设。",80,2025,"否","是","否","是","是","土地流转319.86亩，每亩每年260元，务工就业带动26人增收","预期收益10年，预计每年增加村集体经济收入约5万元",1255,151,"市委组织部、市财政局、市农业农村局","石永强",15871146888]
[108,"金湖街道","大泉村","金湖街道大泉村水果种植项目","产业发展","生产项目","种植业基地","建设大棚20个25亩，排水沟300米，滴灌，土地平整、围栏、监控，蓄水池水泵；栽种水果果苗",78,2025,"否","是","否","是","是","土地流转、就业务工","流转52户土地80亩，每亩流转收益240元，村集体年增收5万元，带动脱贫户5人就业增收3600元",82,30,"市文旅局","彭达军",15972520899]
[109,"金湖街道","平原村","金湖街道平原村四季水果生态园","产业发展","生产项目","种植业基地","新建11个钢结构连栋大棚，总计8亩， 简易遮雨棚20亩",70,2025,"否","是","否","是","是","土地流转、就业务工","预期可增加村级集体经济收入12万元，同时，带动8户脱贫户、一般农12户，每年每户可增收5000元",20,10,"市文旅局","胡海雄",13995992333]
[110,"金湖街道","黄坪山村","金湖街道黄坪山村野生映山红观赏步道及观景平台建设项目","产业发展","生产项目","休闲农业与乡村旅游","黄坪山村凤头山野生映山红观赏步道400米,观景平台总面积200平方米",80,2025,"否","是","否","是","是","改善村居环境及村民生产生活条件","改善107户425人居住环境，提高村民生产生活条件",425,9,"市文旅局","黄学明",17371767836]
["小计",null,12,{"$nulls":5},{"$f":"SUM(I123:I126)","v":308},{"$nulls":8},{"$f":"SUM(R123:R126)","v":1782},{"$f":"SUM(S123:S126)","v":200}]
[111,"东风农场管理区","走马洲村","大冶市东风农场管理区走马洲村特种水产养殖基地项目","产业发展","新型农村集体经济发展项目","新型农村集体经济发展项目","1、改造鱼池35亩（其中精养池6亩*2个，生态池23亩*1个)；2、硬化2条产业路共计875平方米，建设温棚8500平方米、基地围栏700米；3、采购直径10M陆基生态养殖桶4个、生产用房（集装箱）3个、监控设备12套。",68,2025,"否","是","否","是","是","带动务工和“名特优”水产养殖技术推广，实现脱贫户及村民增加经济收入","预期收益10年，预计每年增加村集体经济收入约6万元",438,15,"市委组织部、市财政局、市农业农村局","万建雄",18271668687]
["小计",null,13,{"$nulls":5},{"$f":"I128","v":68},{"$nulls":8},{"$f":"R128","v":438},{"$f":"S128","v":15}]
[112,"汪仁镇","柏树下村","汪仁镇柏树下村种养殖基地","产业发展","新型农村集体经济发展项目","新型农村集体经济发展项目","莲子龙虾套养基地：对30亩水田进行蓄水，并利用机械进行荒草碎片，蓄水烂肥；购买莲子秧苗和龙虾苗，进行种放养等。\n蔬菜大棚种植基地：进行土地平整；新建大棚4个，灌溉设施铺设、蔬菜种植等。",62,2025,"否","是","否","是","是","通过带动务工和土地流转方式，实现脱贫户及村民增加经济收入。","预计收益10年，预计增加村集体经济收入约6万元，后逐年增加",1300,60,"市委组织部、市财政局、市农业农村局","曹海军",19986205685]
[113,"开铁区","寄递物流村","开铁区农村寄递物流网点提档升级项目","乡村建设行动","农村公共服务","其他","开铁区21个农村寄递物流村级服务网点提档升级。",16.8,2025,"否","否","否","否","否","帮助农业企业和农户农产品出村进城，促进农村商贸流通","对农村寄递物流村级服务网点进行提档升级",62313,60704,"区农业农村局","段旭辰",6396006]
[114,"开铁区",null,"开铁区人居环境整治项目","乡村建设","人居环境整治","村容村貌提升","活动广场整治清理，村庄内的生活垃圾、建筑垃圾、沟渠垃圾卫生死角改善，落实“门前三包”、清理“三堆两垛”、拆除旱厕、危房等",1800,2025,"否","否","否","否","否","改善人居环境；提升村容村貌","改善群众人居生活环境、建设宜居宜业和美乡村",12682,7660,"区农业农村局","高峰",6398094]
[115,"汪仁镇","黄荆头村王叶村\n磊山村\n王贵村","汪仁镇民生实事工程项目","乡村建设行动","农村公共服务","公共照明设施","黄荆头村、王叶村、磊山村、王贵村等村行政村安装200盏太阳能路灯。",40,2025,"否","否","否","否","否","改善群众生活及出行条件","改善群众生活及出行条件",2300,2300,"汪仁镇","汪志刚",13886468825]
[116,"汪仁镇","沿湖村","汪仁镇沿湖村产业园道路提升项目","乡村建设行动","农村基础设施\n（含产业配套基础设施）","产业路","沿湖村主干道进入产业园长900米，宽5.5米的道路进行硬化",25,2025,"否","否","否","否","否","改善人居环境，提升村容村貌","改善群众人居生活环境",3000,2000,"沿湖村村委会","吴礼风",13367142836]
[117,"汪仁镇","王叶村","汪仁镇王叶村道路硬化项目","乡村建设行动","农村基础设施\n（含产业配套基础设施）","产业路","一是对村内道路破损路面约1000平方米进行硬化（包含破损路面开挖清理运输，混凝土填充）；二是对150米排水渠进行修缮（包含水渠淤泥清理、混凝土浇灌、护砌）。",27.5,2025,"否","否","否","否","否","改善人居环境，提升村容村貌","改善群众人居生活环境",1600,1200,"汪仁镇王叶村村委会","卫军",13597686881]
[118,"金山街道","鹏程村","金山街道鹏程村人居环境整治项目","乡村建设行动","人居环境整治","村容村貌提升","自来水管网改造升级",20,2025,"否","否","否","否","否","改善人居环境，提升村容村貌","改善群众人居生活环境",400,400,"金山街道鹏程村","雷海洋",15897795620]
[119,"金山街道","张冲村","金山街道张冲村基础设施建设项目","乡村建设行动","人居环境整治","村容村貌提升","张冲村黄应仕大屋湾排洪港沿岸杂树清除，港底清淤、港边护坡",25,2025,"否","是","否","否","否","改善人居环境，提升村容村貌","改善群众人居生活环境",600,400,"金山街道张冲村","黄翔",13451050510]
["小计",null,14,{"$nulls":5},{"$f":"SUM(I130:I137)","v":2016.3},{"$nulls":8},{"$f":"SUM(R130:R137)","v":84195},{"$f":"SUM(S130:S137)","v":74724}]
[120,"各乡镇",null,"“五大产业链”奖补项目（水产产业链）","产业发展","生产项目","水产养殖业发展","对水产产业链项目给予奖补",1000,2025,"否","是","否","是","是","发展生产带动务工就业","促进水产产业链发展",2390,190,"市农业农村局","张兆刚",19971224799]
[121,"东风农场","东风村","水产产业链项目 （湖北富渔外塘示范养殖基地建设）","产业发展","生产项目","水产养殖业发展","对水产产业链项目给予奖补",138,"2024-2025","否","是","否","是","否","发展生产，带动务工就业","促进水产产业链发展",50,50,"市农业农村 局","吴清明",13972792168]
[122,"金湖","程湾村","水产产业链项目 （大冶市鑫垸生态甲鱼养殖基地建设）","产业发展","生产项目","水产养殖业发展","对水产产业链项目给予奖补",151,"2024-2025","否","是","否","是","否","发展生产，带动务工就业","促进水产产业链发展",50,50,"市农业农村 局","吴清明",13972792168]
[123,"还地桥","黄岗村","水产产业链项目 （湖北三山湖生态甲鱼养殖基地建设）","产业发展","生产项目","水产养殖业发展","对水产产业链项目给予奖补",111,"2024-2025","否","是","否","是","否","发展生产，带动务工就业","促进水产产业链发展",90,90,"市农业农村 局","吴清明",13972792168]
[124,"各乡镇",null,"“五大产业链”奖补项目（蔬菜产业链）","产业发展","生产项目","种植业基地","对蔬菜产业链项目给予奖补",1000,2025,"否","是","否","是","是","发展生产带动务工就业","促进蔬菜产业链发展",5620,462,"市商务局","罗旭",13972798923]
[125,"各乡镇",null,"“五大产业链”奖补项目（水果产业链奖补）","产业发展","生产项目","种植业基地","对水果产业链项目给予奖补",1000,2025,"否","是","否","是","是","发展生产带动务工就业","促进水果产业链发展",3520,892,"大冶市文旅局","黄传东",15374513006]
[126,"各乡镇",null,"“五大产业链”奖补项目（水果产业链）","产业发展","生产项目","种植业基地","对水果产业链项目给予奖补",290.63,2025,"否","是","否","是","是","发展生产带动务工就业","促进水果产业链发展",2310,578,"大冶市文旅局","黄传东",15374513006]
[127,"各乡镇",null,"“五大产业链”奖补项目（中药材产业链）","产业发展","生产项目","种植业基地","对中药材产业链项目给予奖补",700,2025,"否","是","否","是","是","发展生产带动务工就业","促进中药材产业链发展",2401,187,"市卫健局","熊旭东",18071487036]
[128,"各乡镇",null,"“雨露计划”教育补助","巩固三保障成果","教育","享受“雨露计划”职业教育补助","就读中、高职的脱贫户、监测户家庭学生每学期补助1500元",190,2025,"是","否","否","否","否","帮助解决脱贫户、监测户家庭子女就学困难","符合条件对象应补尽补",1187,1187,"市农业农村局","王臻",13339906085]
[129,"各乡镇",null,"农村兜底保障","巩固三保障成果","综合保障","享受农村居民最低生活保障","脱贫人口、低保人口、监测对象落实财政兜底保障",6808.05,2025,"是","否","否","否","否","保障困难群众生活","解决脱贫户生活问题",14140,14140,"市民政局","姚昭",15826962691]
[130,"各乡镇",null,"脱贫人口（监测对象）“三业”奖补","就业项目","务工补助","生产奖补、劳务补助等","对发展产业、自主创业、积极就业的脱贫和监测户每户给予1000元奖励",375,2025,"否","否","否","否","否","激发脱贫户和监测户自主就业的内生动力，增加收入","符合条件对象应奖尽奖",3750,3750,"市农业农村局","刘风云",18772268323]
[131,"各乡镇",null,"脱贫户小额信贷贷款贴息","产业发展","金融保险配套项目","小额贷款贴息","对按期还款的脱贫户小额贷款给予贴息",80,2025,"否","否","否","否","否","帮助脱贫户和监测户解决产业发展资金困难","对符合条件贷款对象应补尽补",560,560,"市农业农村局","刘风云",18772268323]
[132,"各乡镇",null,"新型经营主体产业发展贷款贴息","产业发展","金融保险配套项目","新型经营主体贷款贴息","对新型经营主体发展产业贷款给予贴息",117,2025,"否","否","否","否","否","新型农业经营主体带动农户（脱贫户、监测户）土地流转、务工就业增收","帮助农业新型经营主体降低融资成本，促进企业发展壮大",6500,850,"市农业农村局","陈丽梅",13971784699]
[133,null,"各村","巩固脱贫成果（特色农业产业发展奖补）","就业项目","创业","创业奖补","鼓励脱贫户（监测户）自主创业",79.8126,"2024-2025","否","是","否","否","否","鼓励脱贫户（监测户）自主创业","帮助脱贫户（监测户）提高造血能力，实现致富增收，巩固脱贫攻坚成果",1244,422,"市农业农村局","马小芳",13437297625]
[134,"各乡镇",null,"新型经营主体产业发展贷款贴息（第二批）","产业发展","金融保险配套项目","新型经营主体贷款贴息","对新型经营主体发展产业贷款给予贴息",51,2025,"否","否","否","否","否","新型农业经营主体带动农户（脱贫户、监测户）就业增收","帮助农业新型经营主体降低融资成本，促进企业发展壮大",3105,411,"市农业农村局","陈丽梅",13971784699]
[135,"各乡镇",null,"农业产业化奖补（畜牧业能力提升）","产业发展","生产项目","养殖业基地","支持畜牧业能力提升，提高农业产业化水平",69.66,"2024-2025","否","否","否","否","否","带动农户生产和就业，增加农户收入","提升畜牧产业化水平",110,20,"市农业农村局","陈丽梅",13971784699]
[136,"各乡镇",null,"农业产业化奖补（加工提升）","产业发展","加工流通项目","加工业","支持农产品加工提升，提高农业产业化水平",300.61,"2024-2025","否","否","否","否","否","带动农户生产和就业，增加农户收入","提升农业产业化水平，带动农户增收",400,82,"市农业农村局","陈丽梅",13971784699]
[137,"各乡镇",null,"农业产业化奖补（三产融合）","产业发展","生产项目","休闲农业与乡村旅游","支持三产融合发展，提高农业产业化水平",124.77,"2024-2025","否","否","否","否","否","带动农户生产和就业，增加农户收入","提升农业产业化水平，带动农户增收",200,40,"市农业农村局","陈丽梅",13971784699]
[138,"各乡镇",null,"农业产业化奖补（智慧农业）","产业发展","产业服务支撑项目","智慧农业","支持智慧农业建设，提高农业产业化水平",10.52,"2024-2025","否","否","否","否","否","带动农户生产和就业，增加农户收入","提升农业产业化水平，带动农户增收",20,5,"市农业农村局","陈丽梅",13971784699]
[139,"各乡镇",null,"大冶市老区帮扶项目","乡村建设行动","农村公共服务","其他","老区乡村基础设施改善和产业发展帮扶",35,2025,"否","是","否","否","否","改善老区山区村民生产生活条件","帮扶山区老区建设",2140,2140,"市老区促进委员会","陈耀华",13986579482]
[140,"各乡镇",null,"大冶市农村寄递物流建设"," 产业发展","加工流通项目","市场建设和农村物流","提升村级网点建设标准",120,2025,"否","是","否","否","否","帮助促进农村商贸流通","提升农村寄递物流效率和水平",140000,12000,"市交通运输局","柯俊卿","13197000050"]
[141,"全市各相关乡镇","全市各相关村","2025年十大民生项目农村路灯建设","乡村建设行动","农村公共服务","公共照明设施","安装农村太阳能路灯240盏,每盏\n2500元。",60,2025,"否","是","否","否","否","改善农村基础设施，方便村民生产生活","改善农村生产生活环境",3000,3000,"市农业农村局","曹文",15172026861]
[142,"大冶市","部分村","农村人居环境整治（农村厕所改建和污水处理）","乡村建设","人居环境整治","村容村貌提升","新（改）建公厕、户厕等进行奖补及农村污水处理建设",236.38,"2024-2025","否","是","否","否","否","改善村民居住环境","建改农村户厕所300个、公厕40座",1000,800,"市农业农村局","余文瑞",13700723027]
[143,"大冶市","部分村","大冶市农村厕所改建项目","乡村建设","人居环境整治","村容村貌提升","对公厕、户厕进行奖补，推进村湾污水集中处理",300,2025,"否","是","否","否","否","提高村民居住条件，改善村庄环境","建改完成农村户厕1000个、公厕37座建改",2000,1500,"市农业农村局","余文瑞",13700723027]
[144,"大冶市",null,"农村饮水安全项目","乡村建设行动","农村基础设施","农村供水保障设施建设","巩固提升安全饮水质量",200,"2024-2025","是","否","否","否","否","改善村民饮水条件，保障饮水安全","提升小型集中式供水工程供水能力",32000,7000,"市水利 和湖泊局","黄金湖",13617141226]
[145,"各相关乡镇",null,"茶产业链建设（2022年度新建茶园基地奖补）","产业发展","生产项目","种植业基地","对2022年新建茶园基地给予第三年奖补",197.1305,2025,"否","是","是","是","是","发展生产，带动务工就业","促进茶产业链发展",15649,2590,"市农业农村局（市茶办）","柯晓畅",18986591632]
[146,"各相关乡镇",null,"茶产业链建设（2023年度新建茶园基地和喷灌建设奖补）","产业发展","生产项目","种植业基地","对2023年新建茶园基地给予第一年奖补及喷灌设施建设奖补",188.3508,2025,"否","是","是","是","是","发展生产，带动务工就业","促进茶产业链发展",5568,1785,"市农业农村局（市茶办）","柯晓畅",18986591632]
[147,"各相关乡镇",null,"茶产业链建设（茶园抗旱机井奖补）","乡村建设行动","农村基础设施","其他","对茶园基地抗旱机井建设给予奖补",81.546094,2025,"否","是","是","是","是","发展生产，带动务工就业","促进茶产业链发展",{"$f":"478*3","v":1434},478,"市农业农村局（市茶办）","柯晓畅",18986591632]
[148,"各相关乡镇",null,"大冶市茶产业链项目（茶园配套设施建设）","乡村建设行动","农村基础设施","其他","对茶园配套基础设施给予奖补",54,2025,"否","是","是","是","是","带动生产，务工就业","促进茶产业链发展",367,234,"市农业农村局\n（市茶办）","柯晓畅",18986591632]
[149,"各相关乡镇",null,"茶产业链项目（2023年度茶园基地奖补）","产业发展","生产项目","种植业基地","对2023年度新建茶园基地（第二年、第三年度）给予奖补",105.2,2025,"否","是","是","是","是","带动生产，务工就业","促进茶产业链发展",5568,1785,"市农业农村局\n（市茶办）","柯晓畅",18986591632]
[150,"各相关乡镇",null,"茶产业链项目（2024年度茶园基地奖补）","产业发展","生产项目","种植业基地","对2024年度新建茶园基地（第一年度）和喷灌设施等给予奖补",315.8,2025,"否","是","是","是","是","带动生产，务工就业","促进茶产业链发展",3649,590,"市农业农村局\n（市茶办）","柯晓畅",18986591632]
[151,"各相关乡镇",null,"茶产业链建设项目（“殷祖白茶”区域公用品牌建设）","产业发展","加工流通项目","品牌打造和展销平台","打造和推广应用“殷祖白茶”区域公用品牌",12.44,2025,"否","是","否","是","是","发展生产，带动务工就业","促进茶产业链发展",2052,480,"市农业农村局","柯晓畅",18986591632]
[152,"各乡镇",null,"大冶市农村人居环境整治项目","乡村建设行动","人居环境整治","村容村貌提升","村庄环境整治和基础设施完善",8580,2025,"否","是","否","否","否","改善村民居住环境，提高群众生产生活质量","完成涉农社区人居环境整治工作","150000",150000,"市农业农村局","余文瑞",13707230027]
["小计",null,15,{"$nulls":5},{"$f":"SUM(I139:I171)","v":23082.899994},{"$nulls":8},{"$f":"SUM(R139:R171)","v":262074},{"$f":"SUM(S139:S171)","v":208348}]